[Event "Early-Titled-Tuesday-Blitz-September-26-2023"]
[Site "Chess.com"]
[Date "2023.09.26"]
[Round "10"]
[White "NowInChess"]
[Black "LUISMIGUELOV"]
[Result "0-1"]
[WhiteElo "2249"]
[BlackElo "2156"]
[TimeControl "180+1"]
[EndTime "9:55:50 PDT"]
[Termination "LUISMIGUELOV won by resignation"]

1. e4 {[%clk 0:03:00.9]} 1... c6 {[%clk 0:03:00.1]} 2. d4 {[%clk 0:03:00.2]}
2... d5 {[%clk 0:03:00.7]} 3. exd5 {[%clk 0:03:01.1]} 3... cxd5 {[%clk 0:03:00]}
4. c4 {[%clk 0:03:02]} 4... Nf6 {[%clk 0:02:58.5]} 5. Nc3 {[%clk 0:03:01.4]}
5... Nc6 {[%clk 0:02:57.6]} 6. Bf4 {[%clk 0:03:00.8]} 6... e6 {[%clk 0:02:56.9]}
7. c5 {[%clk 0:03:00.7]} 7... Be7 {[%clk 0:02:55.3]} 8. Bb5 {[%clk 0:02:58.8]}
8... O-O {[%clk 0:02:55.2]} 9. Nf3 {[%clk 0:02:58.8]} 9... Ne4 {[%clk
0:02:52.9]} 10. O-O {[%clk 0:02:51.6]} 10... f5 {[%clk 0:02:52.6]} 11. Bxc6
{[%clk 0:02:43.1]} 11... bxc6 {[%clk 0:02:51.1]} 12. Qa4 {[%clk 0:02:43.5]}
12... Bd7 {[%clk 0:02:38.9]} 13. Ne5 {[%clk 0:02:41.8]} 13... Qe8 {[%clk
0:02:38.6]} 14. f3 {[%clk 0:02:37.8]} 14... Nxc3 {[%clk 0:02:36.7]} 15. bxc3
{[%clk 0:02:38.7]} 15... Bf6 {[%clk 0:02:36.7]} 16. Rab1 {[%clk 0:02:28.5]}
16... g5 {[%clk 0:02:27.5]} 17. Bg3 {[%clk 0:01:51.4]} 17... f4 {[%clk
0:02:26.7]} 18. Bf2 {[%clk 0:01:52]} 18... Bxe5 {[%clk 0:02:26.5]} 19. dxe5
{[%clk 0:01:51.9]} 19... Rb8 {[%clk 0:02:12.1]} 20. Rb3 {[%clk 0:01:27.2]} 20...
Qc8 {[%clk 0:02:00.9]} 21. Rfb1 {[%clk 0:01:22.9]} 21... Rxb3 {[%clk 0:02:00.1]}
22. axb3 {[%clk 0:01:22.1]} 22... Qb7 {[%clk 0:01:58.7]} 23. Ra1 {[%clk
0:01:18.8]} 23... Ra8 {[%clk 0:01:57.1]} 24. b4 {[%clk 0:01:10.9]} 24... a6
{[%clk 0:01:56.8]} 25. Qc2 {[%clk 0:01:00.9]} 25... Bc8 {[%clk 0:01:54.3]} 26.
Qd2 {[%clk 0:00:58.1]} 26... Qf7 {[%clk 0:01:50.3]} 27. h4 {[%clk 0:00:56.5]}
27... h6 {[%clk 0:01:48.9]} 28. hxg5 {[%clk 0:00:56]} 28... hxg5 {[%clk
0:01:48.8]} 29. Kf1 {[%clk 0:00:56.5]} 29... Rb8 {[%clk 0:01:47.5]} 30. Ke2
{[%clk 0:00:54.6]} 30... Qg6 {[%clk 0:01:42.6]} 31. Rh1 {[%clk 0:00:52.9]} 31...
Rb7 {[%clk 0:01:40.8]} 32. Qd3 {[%clk 0:00:49.5]} 32... Qxd3+ {[%clk 0:01:39]}
33. Kxd3 {[%clk 0:00:50.4]} 33... Rh7 {[%clk 0:01:38.8]} 34. Rxh7 {[%clk
0:00:45.8]} 34... Kxh7 {[%clk 0:01:38.8]} 35. c4 {[%clk 0:00:45.5]} 35... dxc4+
{[%clk 0:01:37.8]} 36. Kxc4 {[%clk 0:00:45.4]} 36... Kg6 {[%clk 0:01:38.1]} 37.
Kd3 {[%clk 0:00:43.1]} 37... Kf5 {[%clk 0:01:38.2]} 38. Bd4 {[%clk 0:00:43.6]}
38... g4 {[%clk 0:01:37.1]} 39. fxg4+ {[%clk 0:00:29.1]} 39... Kxg4 {[%clk
0:01:36.6]} 40. Ke4 {[%clk 0:00:30]} 40... Bd7 {[%clk 0:01:35.5]} 41. Bf2 {[%clk
0:00:28.8]} 41... Be8 {[%clk 0:01:35]} 42. Kd4 {[%clk 0:00:24.3]} 42... Bg6
{[%clk 0:01:34.7]} 43. Kc3 {[%clk 0:00:23.8]} 43... Be4 {[%clk 0:01:33.9]} 44.
Kb3 {[%clk 0:00:17.9]} 44... Bxg2 {[%clk 0:01:33.3]} 45. Ka4 {[%clk 0:00:18.4]}
45... Bf1 {[%clk 0:01:32.5]} 46. Ka5 {[%clk 0:00:18.7]} 46... Bb5 {[%clk
0:01:32.1]} 47. Kb6 {[%clk 0:00:18.1]} 47... Kf5 {[%clk 0:01:32]} 48. Bd4 {[%clk
0:00:14.7]} 48... Ke4 {[%clk 0:01:31.6]} 49. Bc3 {[%clk 0:00:14.5]} 49... f3
{[%clk 0:01:31.8]} 50. Be1 {[%clk 0:00:14.9]} 50... Kxe5 {[%clk 0:01:31.8]} 51.
Kc7 {[%clk 0:00:15.6]} 51... Kd5 {[%clk 0:01:27.8]} 52. Kd7 {[%clk 0:00:16]}
52... e5 {[%clk 0:01:27.7]} 53. Ke7 {[%clk 0:00:16.5]} 53... e4 {[%clk
0:01:27.4]} 54. Bf2 {[%clk 0:00:15.8]} 54... Kc4 {[%clk 0:01:26.8]} 55. Ke6
{[%clk 0:00:14.7]} 55... Kxb4 {[%clk 0:01:26.8]} 56. Ke5 {[%clk 0:00:15.2]}
56... Bd3 {[%clk 0:01:26.3]} 57. Kd6 {[%clk 0:00:14.5]} 57... Kb5 {[%clk
0:01:26.2]} 58. Be3 {[%clk 0:00:13.6]} 58... a5 {[%clk 0:01:26.2]} 59. Ke5
{[%clk 0:00:13.2]} 59... a4 {[%clk 0:01:25.9]} 60. Kd4 {[%clk 0:00:13.6]} 60...
Kb4 {[%clk 0:01:25.4]} 61. Bd2+ {[%clk 0:00:12]} 61... Kb3 {[%clk 0:01:24.2]}
62. Be1 {[%clk 0:00:11.1]} 62... a3 {[%clk 0:01:24.3]} 63. Bc3 {[%clk
0:00:09.6]} 63... a2 {[%clk 0:01:24.4]} 64. Ba1 {[%clk 0:00:10.2]} 64... f2
{[%clk 0:01:23.8]} 0-1

[Event "Early-Titled-Tuesday-Blitz-September-26-2023"]
[Site "Chess.com"]
[Date "2023.09.26"]
[Round "10"]
[White "Aariow"]
[Black "MasterKroket"]
[Result "0-1"]
[WhiteElo "2583"]
[BlackElo "2456"]
[TimeControl "180+1"]
[EndTime "9:55:56 PDT"]
[Termination "MasterKroket won on time"]

1. d4 {[%clk 0:02:31.9]} 1... Nf6 {[%clk 0:02:57.9]} 2. c4 {[%clk 0:02:30.6]}
2... g6 {[%clk 0:02:58.3]} 3. Nc3 {[%clk 0:02:30.9]} 3... Bg7 {[%clk 0:02:58.7]}
4. e4 {[%clk 0:02:31.3]} 4... O-O {[%clk 0:02:59.1]} 5. f4 {[%clk 0:02:32]} 5...
d6 {[%clk 0:02:58.2]} 6. Nf3 {[%clk 0:02:31.2]} 6... c5 {[%clk 0:02:58.3]} 7. d5
{[%clk 0:02:32]} 7... Bg4 {[%clk 0:02:53.2]} 8. Be2 {[%clk 0:02:32.5]} 8... a6
{[%clk 0:02:51.8]} 9. O-O {[%clk 0:02:33]} 9... b5 {[%clk 0:02:50.3]} 10. cxb5
{[%clk 0:02:32.3]} 10... axb5 {[%clk 0:02:50.6]} 11. Bxb5 {[%clk 0:02:31.9]}
11... Na6 {[%clk 0:02:50.2]} 12. e5 {[%clk 0:02:27.5]} 12... Nd7 {[%clk
0:02:47.8]} 13. exd6 {[%clk 0:02:22.4]} 13... exd6 {[%clk 0:02:46]} 14. h3
{[%clk 0:02:18.4]} 14... Bxf3 {[%clk 0:02:37.2]} 15. Qxf3 {[%clk 0:02:19.3]}
15... Nb4 {[%clk 0:02:36.5]} 16. Bc6 {[%clk 0:01:37.9]} 16... Rb8 {[%clk
0:02:13.5]} 17. Qd1 {[%clk 0:01:13.5]} 17... Bd4+ {[%clk 0:02:08.4]} 18. Kh1
{[%clk 0:01:06.8]} 18... Nxc6 {[%clk 0:02:06.7]} 19. dxc6 {[%clk 0:01:07]} 19...
Nf6 {[%clk 0:02:07.3]} 20. a4 {[%clk 0:00:56.5]} 20... Qc7 {[%clk 0:02:05.1]}
21. Nb5 {[%clk 0:00:51.1]} 21... Qxc6 {[%clk 0:02:03]} 22. Nxd4 {[%clk
0:00:51.4]} 22... cxd4 {[%clk 0:02:03.9]} 23. Qxd4 {[%clk 0:00:51.9]} 23... Nh5
{[%clk 0:01:59.3]} 24. Rf3 {[%clk 0:00:41.8]} 24... Rfe8 {[%clk 0:01:51.1]} 25.
Bd2 {[%clk 0:00:40.9]} 25... Re4 {[%clk 0:01:48.4]} 26. Qc3 {[%clk 0:00:31.4]}
26... Rc4 {[%clk 0:01:48.2]} 27. Qa3 {[%clk 0:00:20.6]} 27... Rc2 {[%clk
0:01:38.9]} 28. Bc3 {[%clk 0:00:20.3]} 28... Re8 {[%clk 0:01:31.8]} 29. Qb4
{[%clk 0:00:05.9]} 29... h6 {[%clk 0:01:10.5]} 30. Qb5 {[%clk 0:00:04.7]} 30...
Qe4 {[%clk 0:01:03.7]} 31. Re1 {[%clk 0:00:03.2]} 31... Qxe1+ {[%clk 0:00:57.9]}
32. Bxe1 {[%clk 0:00:04.1]} 32... Rxe1+ {[%clk 0:00:58]} 33. Kh2 {[%clk
0:00:04.7]} 33... Ree2 {[%clk 0:00:58.7]} 34. Kh1 {[%clk 0:00:02.1]} 34... Re1+
{[%clk 0:00:52.7]} 35. Rf1 {[%clk 0:00:01.7]} 35... Ree2 {[%clk 0:00:52.8]} 36.
Rg1 {[%clk 0:00:01.6]} 36... Nxf4 {[%clk 0:00:49.2]} 37. Qb8+ {[%clk 0:00:01.3]}
37... Kg7 {[%clk 0:00:48.7]} 38. Qxd6 {[%clk 0:00:02.2]} 38... Nxh3 {[%clk
0:00:48.8]} 39. Kh2 {[%clk 0:00:02.1]} 39... Ng5 {[%clk 0:00:41]} 40. Qd4+
{[%clk 0:00:02.5]} 40... Kh7 {[%clk 0:00:36.5]} 41. Kg3 {[%clk 0:00:02]} 41...
Rcd2 {[%clk 0:00:34.8]} 42. Qf6 {[%clk 0:00:02.2]} 42... Ne4+ {[%clk 0:00:34.8]}
0-1

[Event "Early-Titled-Tuesday-Blitz-September-26-2023"]
[Site "Chess.com"]
[Date "2023.09.26"]
[Round "10"]
[White "ATM622"]
[Black "Barbix1"]
[Result "1-0"]
[WhiteElo "2423"]
[BlackElo "2329"]
[TimeControl "180+1"]
[EndTime "9:56:03 PDT"]
[Termination "ATM622 won on time"]

1. d4 {[%clk 0:03:00.9]} 1... Nf6 {[%clk 0:02:59.9]} 2. c4 {[%clk 0:03:00.8]}
2... g6 {[%clk 0:03:00]} 3. g3 {[%clk 0:03:00.9]} 3... d5 {[%clk 0:02:51.9]} 4.
Bg2 {[%clk 0:03:00.5]} 4... Bg7 {[%clk 0:02:39.4]} 5. Nf3 {[%clk 0:03:00.7]}
5... dxc4 {[%clk 0:02:19.5]} 6. O-O {[%clk 0:03:00.6]} 6... O-O {[%clk
0:02:18.1]} 7. Ne5 {[%clk 0:02:56.7]} 7... Nc6 {[%clk 0:02:13.1]} 8. Nxc6 {[%clk
0:02:53.6]} 8... bxc6 {[%clk 0:02:14]} 9. Bxc6 {[%clk 0:02:53.6]} 9... Rb8
{[%clk 0:02:09.7]} 10. Nc3 {[%clk 0:02:53.6]} 10... Bb7 {[%clk 0:01:59.7]} 11.
Bxb7 {[%clk 0:02:51.8]} 11... Rxb7 {[%clk 0:02:00.6]} 12. e4 {[%clk 0:02:45.8]}
12... Nd7 {[%clk 0:01:09.8]} 13. e5 {[%clk 0:02:29.4]} 13... c5 {[%clk
0:00:53.2]} 14. Qf3 {[%clk 0:01:51.3]} 14... Rb8 {[%clk 0:00:36.5]} 15. e6
{[%clk 0:01:22.8]} 15... fxe6 {[%clk 0:00:34.9]} 16. Qe2 {[%clk 0:01:19.6]}
16... cxd4 {[%clk 0:00:29.3]} 17. Qxe6+ {[%clk 0:01:18.4]} 17... Kh8 {[%clk
0:00:29.5]} 18. Nd5 {[%clk 0:01:15.6]} 18... Ne5 {[%clk 0:00:11.2]} 19. Bf4
{[%clk 0:01:10.8]} 19... Nd3 {[%clk 0:00:03.2]} 20. Bxb8 {[%clk 0:01:08.7]}
20... Qxb8 {[%clk 0:00:04.1]} 21. Nxe7 {[%clk 0:01:04.9]} 21... Qxb2 {[%clk
0:00:02.9]} 22. Qxc4 {[%clk 0:00:46]} 22... Ne5 {[%clk 0:00:02.5]} 23. Qe6
{[%clk 0:00:41.3]} 23... Nf3+ {[%clk 0:00:02.7]} 24. Kh1 {[%clk 0:00:40.6]}
24... Qb7 {[%clk 0:00:03.4]} 25. Nd5 {[%clk 0:00:18]} 25... Rd8 {[%clk
0:00:03.1]} 26. Rab1 {[%clk 0:00:18.3]} 26... Qxd5 {[%clk 0:00:02.8]} 27. Qxd5
{[%clk 0:00:17.8]} 27... Rxd5 {[%clk 0:00:03.2]} 28. Rb8+ {[%clk 0:00:17.9]}
28... Bf8 {[%clk 0:00:02.9]} 29. Rxf8+ {[%clk 0:00:18.5]} 29... Kg7 {[%clk
0:00:03.4]} 30. Rxf3 {[%clk 0:00:18.9]} 30... d3 {[%clk 0:00:04.3]} 31. Rd1
{[%clk 0:00:18.4]} 31... d2 {[%clk 0:00:05.2]} 32. Kg2 {[%clk 0:00:19]} 32... g5
{[%clk 0:00:04.8]} 33. Kf1 {[%clk 0:00:19.2]} 33... g4 {[%clk 0:00:05.7]} 34.
Rf4 {[%clk 0:00:18.4]} 1-0

[Event "Early-Titled-Tuesday-Blitz-September-26-2023"]
[Site "Chess.com"]
[Date "2023.09.26"]
[Round "10"]
[White "GMTalks_Youtube"]
[Black "Vesper2018"]
[Result "1-0"]
[WhiteElo "2718"]
[BlackElo "2579"]
[TimeControl "180+1"]
[EndTime "9:56:05 PDT"]
[Termination "GMTalks_Youtube won on time"]

1. e4 {[%clk 0:03:00.9]} 1... c5 {[%clk 0:02:59.7]} 2. Nf3 {[%clk 0:03:00.6]}
2... d6 {[%clk 0:03:00.1]} 3. d4 {[%clk 0:03:00.4]} 3... cxd4 {[%clk 0:03:00.5]}
4. Nxd4 {[%clk 0:03:01.1]} 4... Nf6 {[%clk 0:03:01.1]} 5. Nc3 {[%clk 0:03:01.4]}
5... a6 {[%clk 0:03:01.5]} 6. Bd3 {[%clk 0:03:00.7]} 6... e5 {[%clk 0:02:59.6]}
7. Nde2 {[%clk 0:03:00.6]} 7... Be7 {[%clk 0:02:58.9]} 8. O-O {[%clk 0:03:00.4]}
8... O-O {[%clk 0:02:58.6]} 9. Kh1 {[%clk 0:03:00.5]} 9... Nbd7 {[%clk
0:02:49.9]} 10. f4 {[%clk 0:02:58.6]} 10... Nc5 {[%clk 0:02:41]} 11. Ng3 {[%clk
0:02:57.9]} 11... b5 {[%clk 0:02:27.3]} 12. a3 {[%clk 0:02:57.4]} 12... Nxd3
{[%clk 0:02:24.3]} 13. cxd3 {[%clk 0:02:56.3]} 13... exf4 {[%clk 0:02:21.7]} 14.
Bxf4 {[%clk 0:02:54.3]} 14... d5 {[%clk 0:02:21.8]} 15. e5 {[%clk 0:02:53.1]}
15... Ne8 {[%clk 0:02:20.8]} 16. d4 {[%clk 0:02:49.4]} 16... g6 {[%clk 0:02:10]}
17. Rf2 {[%clk 0:02:16.3]} 17... Ng7 {[%clk 0:02:08.9]} 18. Qf3 {[%clk
0:02:13.5]} 18... Be6 {[%clk 0:02:07.8]} 19. Raf1 {[%clk 0:02:13.8]} 19... h5
{[%clk 0:02:02.4]} 20. h3 {[%clk 0:02:03.9]} 20... Rc8 {[%clk 0:01:55.3]} 21.
Bh6 {[%clk 0:02:03]} 21... h4 {[%clk 0:01:53.5]} 22. Nge2 {[%clk 0:02:00.7]}
22... Bg5 {[%clk 0:01:53.5]} 23. Bxg7 {[%clk 0:01:55.8]} 23... Kxg7 {[%clk
0:01:52.8]} 24. Nf4 {[%clk 0:01:56.4]} 24... Bxf4 {[%clk 0:01:49.9]} 25. Qxf4
{[%clk 0:01:56.2]} 25... Rc4 {[%clk 0:01:47.1]} 26. Qe3 {[%clk 0:01:47.8]} 26...
Rh8 {[%clk 0:01:34.7]} 27. Rf6 {[%clk 0:01:46.3]} 27... Qd7 {[%clk 0:01:18.8]}
28. Ne2 {[%clk 0:01:26.3]} 28... Qa7 {[%clk 0:01:03.3]} 29. b3 {[%clk
0:01:14.9]} 29... Rc2 {[%clk 0:01:00.1]} 30. Nf4 {[%clk 0:01:14.8]} 30... Bf5
{[%clk 0:00:51.6]} 31. Nxd5 {[%clk 0:01:10.9]} 31... Qb7 {[%clk 0:00:43.8]} 32.
Nf4 {[%clk 0:00:34.4]} 32... Rhc8 {[%clk 0:00:20.2]} 33. d5 {[%clk 0:00:32]}
33... R8c3 {[%clk 0:00:19]} 34. Qe1 {[%clk 0:00:30.4]} 34... Qc8 {[%clk
0:00:11.8]} 35. Qxh4 {[%clk 0:00:27.5]} 35... Rc1 {[%clk 0:00:11.5]} 36. Nh5+
{[%clk 0:00:23.2]} 36... gxh5 {[%clk 0:00:08.5]} 37. Qg5+ {[%clk 0:00:22.3]}
37... Kf8 {[%clk 0:00:02.6]} 38. Rxf5 {[%clk 0:00:20.9]} 38... Rxf1+ {[%clk
0:00:02.3]} 39. Rxf1 {[%clk 0:00:20.8]} 1-0

[Event "Early-Titled-Tuesday-Blitz-September-26-2023"]
[Site "Chess.com"]
[Date "2023.09.26"]
[Round "10"]
[White "BeautiFullMindChess"]
[Black "Boundless_Strike"]
[Result "0-1"]
[WhiteElo "2372"]
[BlackElo "2601"]
[TimeControl "180+1"]
[EndTime "9:56:06 PDT"]
[Termination "Boundless_Strike won on time"]

1. e4 {[%clk 0:03:00.9]} 1... d6 {[%clk 0:02:48.4]} 2. d4 {[%clk 0:03:00.4]}
2... e5 {[%clk 0:02:48.4]} 3. Nf3 {[%clk 0:02:53.8]} 3... Bg4 {[%clk 0:02:46.4]}
4. dxe5 {[%clk 0:02:53.6]} 4... Nc6 {[%clk 0:02:46.1]} 5. exd6 {[%clk 0:02:51]}
5... Bxd6 {[%clk 0:02:46.4]} 6. h3 {[%clk 0:02:44.8]} 6... Bh5 {[%clk
0:02:43.8]} 7. g4 {[%clk 0:02:43]} 7... Bg6 {[%clk 0:02:43.5]} 8. Nbd2 {[%clk
0:02:40.3]} 8... Qe7 {[%clk 0:02:43.3]} 9. Bg2 {[%clk 0:02:39.2]} 9... O-O-O
{[%clk 0:02:40.3]} 10. O-O {[%clk 0:02:39.7]} 10... Nf6 {[%clk 0:02:37.3]} 11.
Re1 {[%clk 0:02:37.1]} 11... h5 {[%clk 0:01:40.9]} 12. g5 {[%clk 0:01:34]} 12...
Ng4 {[%clk 0:01:39.2]} 13. hxg4 {[%clk 0:01:08.6]} 13... hxg4 {[%clk 0:01:39.1]}
14. Qe2 {[%clk 0:01:09.5]} 14... gxf3 {[%clk 0:01:31.5]} 15. Nxf3 {[%clk
0:01:10.4]} 15... Ne5 {[%clk 0:01:00.8]} 16. Nxe5 {[%clk 0:00:53.4]} 16... Qxe5
{[%clk 0:01:01.7]} 17. f4 {[%clk 0:00:53.4]} 17... Bc5+ {[%clk 0:01:01.7]} 18.
Kf1 {[%clk 0:00:51.1]} 18... Qe7 {[%clk 0:00:20.8]} 19. Be3 {[%clk 0:00:50.4]}
19... Rh4 {[%clk 0:00:19.4]} 20. Qf2 {[%clk 0:00:43.2]} 20... Bxe3 {[%clk
0:00:19.4]} 21. Qxe3 {[%clk 0:00:39.4]} 21... f6 {[%clk 0:00:16]} 22. Qxa7
{[%clk 0:00:28.5]} 22... Rxf4+ {[%clk 0:00:15.7]} 23. Kg1 {[%clk 0:00:28.3]}
23... c6 {[%clk 0:00:13.7]} 24. Qa8+ {[%clk 0:00:25.4]} 24... Kc7 {[%clk
0:00:13.4]} 25. Qa5+ {[%clk 0:00:26]} 25... Kb8 {[%clk 0:00:12.5]} 26. Rad1
{[%clk 0:00:26.1]} 26... Rh8 {[%clk 0:00:12.7]} 27. gxf6 {[%clk 0:00:19.6]}
27... Qxf6 {[%clk 0:00:11.7]} 28. e5 {[%clk 0:00:17.4]} 28... Qh4 {[%clk
0:00:11.3]} 29. Rd8+ {[%clk 0:00:01.2]} 29... Rxd8 {[%clk 0:00:10.6]} 30. e6
{[%clk 0:00:02.1]} 30... Qf2+ {[%clk 0:00:10]} 31. Kh2 {[%clk 0:00:01.3]} 31...
Rh8+ {[%clk 0:00:10.5]} 0-1

[Event "Early-Titled-Tuesday-Blitz-September-26-2023"]
[Site "Chess.com"]
[Date "2023.09.26"]
[Round "10"]
[White "Kopytkin"]
[Black "CraiggoryC"]
[Result "1-0"]
[WhiteElo "2374"]
[BlackElo "2254"]
[TimeControl "180+1"]
[EndTime "9:56:08 PDT"]
[Termination "Kopytkin won by resignation"]

1. d4 {[%clk 0:02:51.3]} 1... e6 {[%clk 0:03:00.4]} 2. e4 {[%clk 0:02:49.1]}
2... d5 {[%clk 0:02:59.9]} 3. exd5 {[%clk 0:02:49.7]} 3... exd5 {[%clk
0:03:00.8]} 4. Bd3 {[%clk 0:02:49.9]} 4... Bd6 {[%clk 0:03:01.3]} 5. Qf3 {[%clk
0:02:49.8]} 5... Nc6 {[%clk 0:02:58.8]} 6. Ne2 {[%clk 0:02:47.8]} 6... Nf6
{[%clk 0:02:43.5]} 7. Bg5 {[%clk 0:02:46]} 7... h6 {[%clk 0:02:44]} 8. Bxf6
{[%clk 0:02:45.5]} 8... Qxf6 {[%clk 0:02:43.3]} 9. Qxf6 {[%clk 0:02:45.7]} 9...
gxf6 {[%clk 0:02:43.3]} 10. c3 {[%clk 0:02:46.3]} 10... Ne7 {[%clk 0:02:42.3]}
11. Ng3 {[%clk 0:02:43.9]} 11... h5 {[%clk 0:02:39.2]} 12. Nd2 {[%clk
0:02:36.2]} 12... h4 {[%clk 0:02:36.9]} 13. Ngf1 {[%clk 0:02:36.6]} 13... h3
{[%clk 0:02:33.6]} 14. g3 {[%clk 0:02:36.4]} 14... f5 {[%clk 0:02:22.4]} 15. f4
{[%clk 0:02:30.4]} 15... Ng8 {[%clk 0:02:10.5]} 16. Ne3 {[%clk 0:02:27.1]} 16...
Ne7 {[%clk 0:02:07.8]} 17. Nf3 {[%clk 0:02:24.8]} 17... c6 {[%clk 0:02:07.5]}
18. Kd2 {[%clk 0:02:05.8]} 18... Bd7 {[%clk 0:01:57.7]} 19. Raf1 {[%clk
0:02:04.5]} 19... O-O-O {[%clk 0:01:56.1]} 20. Nh4 {[%clk 0:01:59]} 20... Rh5
{[%clk 0:01:43]} 21. b4 {[%clk 0:01:50.7]} 21... Kc7 {[%clk 0:01:33.5]} 22. Nf3
{[%clk 0:01:47.2]} 22... Re8 {[%clk 0:01:20.4]} 23. Rb1 {[%clk 0:01:40.5]} 23...
a6 {[%clk 0:01:16.7]} 24. a4 {[%clk 0:01:38.4]} 24... Nc8 {[%clk 0:01:12.9]} 25.
Ne5 {[%clk 0:01:30.3]} 25... Be6 {[%clk 0:00:57.9]} 26. b5 {[%clk 0:01:17.5]}
26... axb5 {[%clk 0:00:53.4]} 27. axb5 {[%clk 0:01:18.4]} 27... f6 {[%clk
0:00:51.6]} 28. Nf3 {[%clk 0:01:13.6]} 28... Bf8 {[%clk 0:00:39.8]} 29. bxc6
{[%clk 0:01:06.8]} 29... bxc6 {[%clk 0:00:40.7]} 30. Ra1 {[%clk 0:01:07.1]}
30... Nd6 {[%clk 0:00:20.1]} 31. Ra7+ {[%clk 0:01:01.9]} 31... Kb6 {[%clk
0:00:14.8]} 32. Ra6+ {[%clk 0:01:01.5]} 32... Kc7 {[%clk 0:00:13.4]} 33. Rb1
{[%clk 0:01:01]} 33... Rb8 {[%clk 0:00:10.6]} 34. Ra7+ {[%clk 0:01:01.1]} 34...
Rb7 {[%clk 0:00:10.7]} 35. Rbxb7+ {[%clk 0:00:57.7]} 35... Nxb7 {[%clk
0:00:10.8]} 36. Nh4 {[%clk 0:00:40.9]} 36... Kb8 {[%clk 0:00:08]} 37. Ra6 {[%clk
0:00:33.7]} 37... Kc7 {[%clk 0:00:08]} 38. Nhxf5 {[%clk 0:00:30.4]} 38... Bxf5
{[%clk 0:00:06.8]} 39. Nxf5 {[%clk 0:00:29.9]} 39... Nd6 {[%clk 0:00:07.1]} 40.
Nxd6 {[%clk 0:00:28.7]} 40... Bxd6 {[%clk 0:00:08]} 41. Ra7+ {[%clk 0:00:28.4]}
41... Kd8 {[%clk 0:00:06.4]} 42. Be2 {[%clk 0:00:24.2]} 42... Rh8 {[%clk
0:00:04.5]} 43. Ra8+ {[%clk 0:00:22.7]} 1-0

[Event "Early-Titled-Tuesday-Blitz-September-26-2023"]
[Site "Chess.com"]
[Date "2023.09.26"]
[Round "10"]
[White "Hrant_ChessMood"]
[Black "ArtemDyachuk"]
[Result "1-0"]
[WhiteElo "2904"]
[BlackElo "2699"]
[TimeControl "180+1"]
[EndTime "9:56:09 PDT"]
[Termination "Hrant_ChessMood won on time"]

1. e4 {[%clk 0:02:50.6]} 1... c6 {[%clk 0:02:57.3]} 2. Nf3 {[%clk 0:02:48.4]}
2... d5 {[%clk 0:02:57]} 3. d3 {[%clk 0:02:48.5]} 3... Qc7 {[%clk 0:02:56.1]} 4.
Nc3 {[%clk 0:02:46.6]} 4... dxe4 {[%clk 0:02:49.1]} 5. dxe4 {[%clk 0:02:46]}
5... e5 {[%clk 0:02:44.2]} 6. Bc4 {[%clk 0:02:43.5]} 6... Bg4 {[%clk 0:02:36.2]}
7. O-O {[%clk 0:02:32.7]} 7... Nf6 {[%clk 0:02:33.8]} 8. h3 {[%clk 0:02:27.7]}
8... Bh5 {[%clk 0:02:33.1]} 9. a4 {[%clk 0:02:23.1]} 9... Nbd7 {[%clk
0:02:32.5]} 10. a5 {[%clk 0:02:21.4]} 10... a6 {[%clk 0:02:31.9]} 11. Bd2 {[%clk
0:02:14.9]} 11... O-O-O {[%clk 0:02:28.6]} 12. Qe2 {[%clk 0:02:12.5]} 12... Nc5
{[%clk 0:02:23.8]} 13. b4 {[%clk 0:02:08.6]} 13... Bxf3 {[%clk 0:02:19.5]} 14.
gxf3 {[%clk 0:02:02.8]} 14... Ne6 {[%clk 0:02:18.9]} 15. Bxe6+ {[%clk 0:02:02]}
15... fxe6 {[%clk 0:02:19.8]} 16. Be3 {[%clk 0:01:57.5]} 16... Qf7 {[%clk
0:02:15.1]} 17. Na4 {[%clk 0:01:55.8]} 17... Nh5 {[%clk 0:01:59.9]} 18. Rfd1
{[%clk 0:01:49.2]} 18... Bd6 {[%clk 0:01:49.5]} 19. Rd3 {[%clk 0:01:29.4]} 19...
Bc7 {[%clk 0:01:39.4]} 20. Rad1 {[%clk 0:01:28]} 20... Qf6 {[%clk 0:01:30.3]}
21. Nc5 {[%clk 0:01:25.9]} 21... Rd4 {[%clk 0:01:18.7]} 22. c3 {[%clk
0:01:23.8]} 22... Rxd3 {[%clk 0:01:13.8]} 23. Rxd3 {[%clk 0:01:24.7]} 23... Rf8
{[%clk 0:01:11.5]} 24. Qd1 {[%clk 0:01:19.1]} 24... Qg6+ {[%clk 0:00:37.1]} 25.
Kf1 {[%clk 0:01:17]} 25... Nf4 {[%clk 0:00:38]} 26. Bxf4 {[%clk 0:01:13.4]}
26... exf4 {[%clk 0:00:38.9]} 27. Rd7 {[%clk 0:01:13]} 27... Rf7 {[%clk
0:00:29.6]} 28. Qd4 {[%clk 0:00:54.7]} 28... Qh5 {[%clk 0:00:17.5]} 29. Rxf7
{[%clk 0:00:53.1]} 29... Qxf7 {[%clk 0:00:18.4]} 30. Qc4 {[%clk 0:00:53.2]}
30... Be5 {[%clk 0:00:06.8]} 31. Ke2 {[%clk 0:00:52.6]} 31... Kc7 {[%clk
0:00:06.6]} 32. Qxe6 {[%clk 0:00:50.3]} 32... Qxe6 {[%clk 0:00:03.4]} 33. Nxe6+
{[%clk 0:00:51.2]} 33... Kd6 {[%clk 0:00:04.3]} 34. Nd4 {[%clk 0:00:51.2]} 34...
c5 {[%clk 0:00:04.4]} 35. bxc5+ {[%clk 0:00:44.6]} 35... Kxc5 {[%clk 0:00:05.3]}
36. Kd3 {[%clk 0:00:44.8]} 36... b6 {[%clk 0:00:02.3]} 37. axb6 {[%clk
0:00:41.9]} 37... Kxb6 {[%clk 0:00:03.2]} 38. Kc4 {[%clk 0:00:42.4]} 38... a5
{[%clk 0:00:03.3]} 39. Ne6 {[%clk 0:00:39.7]} 39... g6 {[%clk 0:00:03.4]} 40.
Nc5 {[%clk 0:00:39.7]} 40... Kc6 {[%clk 0:00:03.4]} 41. Nd3 {[%clk 0:00:39.6]}
41... Bd6 {[%clk 0:00:02.6]} 42. e5 {[%clk 0:00:37.2]} 42... Be7 {[%clk
0:00:02.7]} 43. Nxf4 {[%clk 0:00:37]} 43... a4 {[%clk 0:00:02.3]} 44. Nd5 {[%clk
0:00:37.7]} 44... Bf8 {[%clk 0:00:01.7]} 45. Nb4+ {[%clk 0:00:37.2]} 45... Kb6
{[%clk 0:00:01.5]} 46. f4 {[%clk 0:00:36.6]} 46... a3 {[%clk 0:00:01.5]} 47. Kb3
{[%clk 0:00:36.7]} 47... Kb5 {[%clk 0:00:02]} 48. Nd3 {[%clk 0:00:34.9]} 1-0